[Event "Titled Tuesday Blitz March 08 Late 2022"]
[White "Arabidze, Meri"]
[Black "Mikhalsky, Vladimir"]
[WhiteFideId "13604040"]
[BlackFideId "14144352"]
[WhiteElo "2335"]
[BlackElo "2301"]
[Result "1-0"]
[Round "05"]
[TimeControl "180+1"]
[Date "2022.03.09"]
[WhiteClock "0:00:14"]
[BlackClock "0:00:08"]

1. Nf3 {[%clk 0:02:55]}  c5 {[%clk 0:02:58]} 2. g3 {[%clk 0:02:55]}  Nc6 {[%clk 0:02:57]} 3. Bg2 {[%clk 0:02:56]}  e5 {[%clk 0:02:56]} 4. e4 {[%clk 0:02:53]}  g6 {[%clk 0:02:52]} 5. Nc3 {[%clk 0:02:53]}  Bg7 {[%clk 0:02:52]} 6. O-O {[%clk 0:02:53]}  Nge7 {[%clk 0:02:52]} 7. d3 {[%clk 0:02:53]}  O-O {[%clk 0:02:51]} 8. Bg5 {[%clk 0:02:52]}  h6 {[%clk 0:02:51]} 9. Be3 {[%clk 0:02:53]}  d6 {[%clk 0:02:51]} 10. Qd2 {[%clk 0:02:53]}  Kh7 {[%clk 0:02:50]} 11. Nd5 {[%clk 0:02:45]}  f5 {[%clk 0:02:49]} 12. exf5 {[%clk 0:02:27]}  Nxd5 {[%clk 0:02:33]} 13. fxg6+ {[%clk 0:02:28]}  Kh8 {[%clk 0:02:20]} 14. Bxh6 {[%clk 0:02:28]}  Bf5 {[%clk 0:01:53]} 15. Nh4 {[%clk 0:02:20]}  Nce7 {[%clk 0:01:37]} 16. Qg5 {[%clk 0:02:13]}  Qd7 {[%clk 0:01:05]} 17. Bxd5 {[%clk 0:01:16]}  Nxd5 {[%clk 0:01:03]} 18. Qh5 {[%clk 0:01:16]}  Bxh6 {[%clk 0:00:57]} 19. Qxh6+ {[%clk 0:01:14]}  Kg8 {[%clk 0:00:57]} 20. g7 {[%clk 0:00:56]}  Qxg7 {[%clk 0:00:53]} 21. Qxd6 {[%clk 0:00:56]}  Rad8 {[%clk 0:00:47]} 22. Qxc5 {[%clk 0:00:56]}  Bh3 {[%clk 0:00:45]} 23. Rfe1 {[%clk 0:00:51]}  Qf6 {[%clk 0:00:36]} 24. Re2 {[%clk 0:00:42]}  Bg4 {[%clk 0:00:33]} 25. Re4 {[%clk 0:00:37]}  Bh3 {[%clk 0:00:30]} 26. Re2 {[%clk 0:00:23]}  b6 {[%clk 0:00:30]} 27. Qc4 {[%clk 0:00:23]}  Qf7 {[%clk 0:00:21]} 28. Qe4 {[%clk 0:00:22]}  Rde8 {[%clk 0:00:19]} 29. Rae1 {[%clk 0:00:20]}  Nf6 {[%clk 0:00:17]} 30. Qg6+ {[%clk 0:00:20]}  Qxg6 {[%clk 0:00:17]} 31. Nxg6 {[%clk 0:00:21]}  Rf7 {[%clk 0:00:17]} 32. Rxe5 {[%clk 0:00:20]}  Rxe5 {[%clk 0:00:16]} 33. Nxe5 {[%clk 0:00:18]}  Re7 {[%clk 0:00:16]} 34. Nf3 {[%clk 0:00:19]}  Rxe1+ {[%clk 0:00:16]} 35. Nxe1 {[%clk 0:00:20]}  Be6 {[%clk 0:00:16]} 36. a3 {[%clk 0:00:19]}  Nd5 {[%clk 0:00:16]} 37. Ng2 {[%clk 0:00:17]}  b5 {[%clk 0:00:16]} 38. f4 {[%clk 0:00:17]}  b4 {[%clk 0:00:16]} 39. axb4 {[%clk 0:00:14]}  Nxb4 {[%clk 0:00:16]} 40. Ne3 {[%clk 0:00:14]}  Ba2 {[%clk 0:00:15]} 41. d4 {[%clk 0:00:10]}  Bb1 {[%clk 0:00:14]} 42. c3 {[%clk 0:00:11]}  Nc2 {[%clk 0:00:13]} 43. Nxc2 {[%clk 0:00:10]}  Bxc2 {[%clk 0:00:13]} 44. Kf2 {[%clk 0:00:11]}  Kf7 {[%clk 0:00:13]} 45. g4 {[%clk 0:00:11]}  Ke6 {[%clk 0:00:13]} 46. h4 {[%clk 0:00:12]}  Kf6 {[%clk 0:00:13]} 47. h5 {[%clk 0:00:12]}  Bd1 {[%clk 0:00:13]} 48. Kg3 {[%clk 0:00:12]}  a5 {[%clk 0:00:13]} 49. g5+ {[%clk 0:00:12]}  Kf5 {[%clk 0:00:13]} 50. h6 {[%clk 0:00:13]}  Kg6 {[%clk 0:00:12]} 51. f5+ {[%clk 0:00:13]}  Kh7 {[%clk 0:00:10]} 52. f6 {[%clk 0:00:13]}  Bb3 {[%clk 0:00:09]} 53. Kf4 {[%clk 0:00:14]}  Kg6 {[%clk 0:00:09]} 54. Ke5 {[%clk 0:00:13]}  Bf7 {[%clk 0:00:08]} 55. d5 {[%clk 0:00:13]}  Bg8 {[%clk 0:00:08]} 56. d6 {[%clk 0:00:13]}  Bf7 {[%clk 0:00:08]} 57. d7 {[%clk 0:00:14]} 1-0


[Site "https://www.chess.com"]

[Event "Titled Tuesday Blitz March 08 Late 2022"]
[White "Bacrot, Etienne"]
[Black "Fishbein, Alexander"]
[WhiteFideId "605506"]
[BlackFideId "2000377"]
[WhiteElo "2673"]
[BlackElo "2442"]
[Result "1-0"]
[Round "05"]
[TimeControl "180+1"]
[Date "2022.03.08"]
[WhiteClock "0:00:53"]
[BlackClock "0:00:38"]

1. e4 {[%clk 0:02:44]}  e5 {[%clk 0:02:57]} 2. Nf3 {[%clk 0:02:44]}  Nc6 {[%clk 0:02:56]} 3. Bc4 {[%clk 0:02:44]}  Nf6 {[%clk 0:02:56]} 4. d3 {[%clk 0:02:44]}  Be7 {[%clk 0:02:55]} 5. O-O {[%clk 0:02:44]}  O-O {[%clk 0:02:55]} 6. a4 {[%clk 0:02:44]}  d6 {[%clk 0:02:54]} 7. Nc3 {[%clk 0:02:44]}  Be6 {[%clk 0:02:51]} 8. h3 {[%clk 0:02:43]}  a6 {[%clk 0:02:45]} 9. a5 {[%clk 0:02:42]}  d5 {[%clk 0:02:39]} 10. exd5 {[%clk 0:02:32]}  Nxd5 {[%clk 0:02:39]} 11. Nxd5 {[%clk 0:02:28]}  Bxd5 {[%clk 0:02:38]} 12. Qe2 {[%clk 0:02:27]}  Bxc4 {[%clk 0:02:34]} 13. dxc4 {[%clk 0:02:28]}  Nd4 {[%clk 0:02:24]} 14. Nxd4 {[%clk 0:02:20]}  exd4 {[%clk 0:02:22]} 15. Bd2 {[%clk 0:02:17]}  Bf6 {[%clk 0:02:22]} 16. Qd3 {[%clk 0:02:17]}  Re8 {[%clk 0:02:14]} 17. Qb3 {[%clk 0:02:04]}  Qd7 {[%clk 0:02:08]} 18. Rfe1 {[%clk 0:01:57]}  Qc6 {[%clk 0:02:07]} 19. Qd3 {[%clk 0:01:55]}  h6 {[%clk 0:02:04]} 20. b4 {[%clk 0:01:55]}  Rxe1+ {[%clk 0:02:01]} 21. Rxe1 {[%clk 0:01:54]}  Re8 {[%clk 0:02:00]} 22. Rxe8+ {[%clk 0:01:52]}  Qxe8 {[%clk 0:02:00]} 23. b5 {[%clk 0:01:52]}  Qe6 {[%clk 0:01:58]} 24. c5 {[%clk 0:01:47]}  axb5 {[%clk 0:01:56]} 25. Qxb5 {[%clk 0:01:47]}  Qd5 {[%clk 0:01:48]} 26. Bf4 {[%clk 0:01:42]}  Bd8 {[%clk 0:01:19]} 27. Qe8+ {[%clk 0:01:39]}  Kh7 {[%clk 0:01:18]} 28. Bd2 {[%clk 0:01:32]}  c6 {[%clk 0:01:16]} 29. g3 {[%clk 0:01:14]}  h5 {[%clk 0:01:10]} 30. h4 {[%clk 0:01:05]}  Bf6 {[%clk 0:00:59]} 31. Qb8 {[%clk 0:00:57]}  d3 {[%clk 0:00:54]} 32. cxd3 {[%clk 0:00:56]}  Qxd3 {[%clk 0:00:54]} 33. Be3 {[%clk 0:00:57]}  Qb1+ {[%clk 0:00:50]} 34. Kh2 {[%clk 0:00:57]}  Qb5 {[%clk 0:00:45]} 35. Qc7 {[%clk 0:00:55]}  Kg6 {[%clk 0:00:44]} 36. Qb6 {[%clk 0:00:54]}  Qa6 {[%clk 0:00:38]} 37. Qb1+ {[%clk 0:00:53]} 1-0


[Site "https://www.chess.com"]

[Event "Titled Tuesday Blitz March 08 Late 2022"]
[White "Baker, Chris W"]
[Black "Martin Barcelo, Carles"]
[WhiteFideId "401676"]
[BlackFideId "24561444"]
[WhiteElo "2261"]
[BlackElo "1875"]
[Result "1-0"]
[Round "05"]
[TimeControl "180+1"]
[Date "2022.03.09"]
[WhiteClock "0:00:14"]
[BlackClock "0:00:01"]

1. c4 {[%clk 0:03:00]}  g6 {[%clk 0:02:55]} 2. Nf3 {[%clk 0:02:59]}  Bg7 {[%clk 0:02:56]} 3. g3 {[%clk 0:02:59]}  c5 {[%clk 0:02:53]} 4. Bg2 {[%clk 0:02:59]}  Nc6 {[%clk 0:02:54]} 5. O-O {[%clk 0:02:58]}  e5 {[%clk 0:02:54]} 6. Nc3 {[%clk 0:02:56]}  Nge7 {[%clk 0:02:54]} 7. d3 {[%clk 0:02:55]}  O-O {[%clk 0:02:54]} 8. a3 {[%clk 0:02:53]}  d6 {[%clk 0:02:51]} 9. Rb1 {[%clk 0:02:53]}  a5 {[%clk 0:02:51]} 10. Bd2 {[%clk 0:02:46]}  Rb8 {[%clk 0:02:42]} 11. Qc1 {[%clk 0:02:43]}  Be6 {[%clk 0:02:38]} 12. Bh6 {[%clk 0:02:41]}  f6 {[%clk 0:02:32]} 13. Bxg7 {[%clk 0:02:40]}  Kxg7 {[%clk 0:02:33]} 14. Qd2 {[%clk 0:02:19]}  d5 {[%clk 0:02:27]} 15. cxd5 {[%clk 0:02:17]}  Nxd5 {[%clk 0:02:28]} 16. Ne4 {[%clk 0:02:06]}  b6 {[%clk 0:02:26]} 17. Rfc1 {[%clk 0:02:02]}  h6 {[%clk 0:02:24]} 18. Qc2 {[%clk 0:01:45]}  Qd7 {[%clk 0:01:39]} 19. e3 {[%clk 0:01:36]}  Rfd8 {[%clk 0:01:35]} 20. Nfd2 {[%clk 0:01:24]}  Rbc8 {[%clk 0:01:24]} 21. Bf1 {[%clk 0:01:13]}  f5 {[%clk 0:01:14]} 22. Nc3 {[%clk 0:01:12]}  Nde7 {[%clk 0:01:09]} 23. Nb5 {[%clk 0:01:02]}  g5 {[%clk 0:00:55]} 24. Nc4 {[%clk 0:01:01]}  Ng6 {[%clk 0:00:49]} 25. Qc3 {[%clk 0:00:57]}  Bxc4 {[%clk 0:00:35]} 26. dxc4 {[%clk 0:00:55]}  Qd2 {[%clk 0:00:31]} 27. Bg2 {[%clk 0:00:46]}  Qxc3 {[%clk 0:00:25]} 28. Nxc3 {[%clk 0:00:40]}  Nce7 {[%clk 0:00:24]} 29. Rd1 {[%clk 0:00:38]}  Kf6 {[%clk 0:00:22]} 30. Bd5 {[%clk 0:00:37]}  Rd7 {[%clk 0:00:16]} 31. e4 {[%clk 0:00:31]}  Rcd8 {[%clk 0:00:16]} 32. f3 {[%clk 0:00:29]}  f4 {[%clk 0:00:15]} 33. g4 {[%clk 0:00:28]}  Nh4 {[%clk 0:00:14]} 34. Kf2 {[%clk 0:00:28]}  Nc8 {[%clk 0:00:13]} 35. b4 {[%clk 0:00:26]}  axb4 {[%clk 0:00:09]} 36. axb4 {[%clk 0:00:26]}  cxb4 {[%clk 0:00:10]} 37. Rxb4 {[%clk 0:00:25]}  Ng6 {[%clk 0:00:11]} 38. Rb5 {[%clk 0:00:25]}  Nge7 {[%clk 0:00:10]} 39. Ra1 {[%clk 0:00:24]}  Rc7 {[%clk 0:00:09]} 40. Ra8 {[%clk 0:00:22]}  Rd6 {[%clk 0:00:07]} 41. Rb3 {[%clk 0:00:20]}  Rc5 {[%clk 0:00:06]} 42. Nb5 {[%clk 0:00:19]}  Rd8 {[%clk 0:00:05]} 43. Na7 {[%clk 0:00:18]}  Rf8 {[%clk 0:00:02]} 44. Rxb6+ {[%clk 0:00:16]}  Nxb6 {[%clk 0:00:02]} 45. Rxf8+ {[%clk 0:00:16]}  Kg7 {[%clk 0:00:02]} 46. Rf7+ {[%clk 0:00:16]}  Kg6 {[%clk 0:00:03]} 47. Rxe7 {[%clk 0:00:16]}  Nxc4 {[%clk 0:00:02]} 48. Re6+ {[%clk 0:00:16]}  Kg7 {[%clk 0:00:01]} 49. Bxc4 {[%clk 0:00:16]}  Rxc4 {[%clk 0:00:02]} 50. Nc6 {[%clk 0:00:16]}  Rc2+ {[%clk 0:00:02]} 51. Kf1 {[%clk 0:00:15]}  Rxh2 {[%clk 0:00:01]} 52. Nxe5 {[%clk 0:00:14]} 1-0


[Site "https://www.chess.com"]

[Event "Titled Tuesday Blitz March 08 Late 2022"]
[White "Bashirli, Nail"]
[Black "Jacobson, Brandon"]
[WhiteFideId "13406809"]
[BlackFideId "30901561"]
[WhiteElo "2333"]
[BlackElo "2362"]
[Result "1-0"]
[Round "05"]
[TimeControl "180+1"]
[Date "2022.03.08"]
[WhiteClock "0:00:24"]
[BlackClock "0:00:02"]

1. e4 {[%clk 0:03:00]}  c5 {[%clk 0:02:59]} 2. Nc3 {[%clk 0:02:59]}  d6 {[%clk 0:02:58]} 3. Nf3 {[%clk 0:02:58]}  Nc6 {[%clk 0:02:58]} 4. d4 {[%clk 0:02:58]}  cxd4 {[%clk 0:02:59]} 5. Nxd4 {[%clk 0:02:59]}  Nf6 {[%clk 0:03:00]} 6. Bg5 {[%clk 0:02:58]}  e6 {[%clk 0:03:00]} 7. Qd2 {[%clk 0:02:58]}  a6 {[%clk 0:03:01]} 8. O-O-O {[%clk 0:02:58]}  Bd7 {[%clk 0:03:01]} 9. f4 {[%clk 0:02:59]}  Be7 {[%clk 0:03:01]} 10. Nf3 {[%clk 0:03:00]}  b5 {[%clk 0:03:02]} 11. Bxf6 {[%clk 0:02:56]}  gxf6 {[%clk 0:03:02]} 12. Kb1 {[%clk 0:02:53]}  b4 {[%clk 0:03:00]} 13. Ne2 {[%clk 0:02:52]}  h5 {[%clk 0:03:01]} 14. f5 {[%clk 0:02:50]}  e5 {[%clk 0:03:01]} 15. Nc1 {[%clk 0:02:47]}  Qb6 {[%clk 0:02:49]} 16. Bc4 {[%clk 0:02:46]}  Na5 {[%clk 0:02:45]} 17. Qd5 {[%clk 0:02:39]}  Nxc4 {[%clk 0:02:41]} 18. Qxa8+ {[%clk 0:02:38]}  Bd8 {[%clk 0:02:42]} 19. Qd5 {[%clk 0:02:35]}  Ne3 {[%clk 0:02:41]} 20. Qxd6 {[%clk 0:02:35]}  Nxd1 {[%clk 0:02:41]} 21. Rxd1 {[%clk 0:02:34]}  Qxd6 {[%clk 0:02:16]} 22. Rxd6 {[%clk 0:02:35]}  Bb5 {[%clk 0:02:05]} 23. Nd3 {[%clk 0:02:31]}  Ke7 {[%clk 0:01:52]} 24. Rd5 {[%clk 0:02:30]}  Bc4 {[%clk 0:01:03]} 25. Rc5 {[%clk 0:02:21]}  Bb5 {[%clk 0:00:31]} 26. Nxb4 {[%clk 0:02:16]}  Rg8 {[%clk 0:00:31]} 27. g3 {[%clk 0:02:06]}  Rg4 {[%clk 0:00:20]} 28. c4 {[%clk 0:01:51]}  Bd7 {[%clk 0:00:09]} 29. Nd2 {[%clk 0:01:38]}  h4 {[%clk 0:00:09]} 30. Nd5+ {[%clk 0:01:30]}  Kd6 {[%clk 0:00:08]} 31. b4 {[%clk 0:01:00]}  hxg3 {[%clk 0:00:08]} 32. hxg3 {[%clk 0:01:01]}  a5 {[%clk 0:00:09]} 33. Ne3 {[%clk 0:00:41]}  Rxg3 {[%clk 0:00:07]} 34. Rd5+ {[%clk 0:00:41]}  Ke7 {[%clk 0:00:07]} 35. Nc2 {[%clk 0:00:36]}  axb4 {[%clk 0:00:04]} 36. Nxb4 {[%clk 0:00:37]}  Rg2 {[%clk 0:00:02]} 37. Rd3 {[%clk 0:00:34]}  Be8 {[%clk 0:00:02]} 38. Nb3 {[%clk 0:00:29]}  Rh2 {[%clk 0:00:01]} 39. c5 {[%clk 0:00:29]}  Bb5 {[%clk 0:00:01]} 40. Rd1 {[%clk 0:00:28]}  Ke8 {[%clk 0:00:02]} 41. c6 {[%clk 0:00:24]}  Bb6 {[%clk 0:00:02]} 42. Nd5 {[%clk 0:00:24]} 1-0


[Site "https://www.chess.com"]

[Event "Titled Tuesday Blitz March 08 Late 2022"]
[White "Bellahcene, Bilel"]
[Black "Melkumyan, Hrant"]
[WhiteFideId "696358"]
[BlackFideId "13302485"]
[WhiteElo "2515"]
[BlackElo "2924"]
[Result "1-0"]
[Round "05"]
[TimeControl "180+1"]
[Date "2022.03.09"]
[WhiteClock "0:00:03"]
[BlackClock "0:00:09"]

1. d4 {[%clk 0:03:00]}  d5 {[%clk 0:02:58]} 2. Bf4 {[%clk 0:02:59]}  c5 {[%clk 0:02:56]} 3. e3 {[%clk 0:02:54]}  Nc6 {[%clk 0:02:56]} 4. Nf3 {[%clk 0:02:54]}  Bg4 {[%clk 0:02:52]} 5. Be2 {[%clk 0:02:44]}  e6 {[%clk 0:02:35]} 6. O-O {[%clk 0:02:42]}  Nf6 {[%clk 0:02:29]} 7. c3 {[%clk 0:02:38]}  Bd6 {[%clk 0:02:25]} 8. Ne5 {[%clk 0:02:36]}  Bxe2 {[%clk 0:02:23]} 9. Qxe2 {[%clk 0:02:37]}  Bxe5 {[%clk 0:02:16]} 10. Bxe5 {[%clk 0:02:34]}  Nxe5 {[%clk 0:02:14]} 11. dxe5 {[%clk 0:02:35]}  Nd7 {[%clk 0:02:14]} 12. f4 {[%clk 0:02:35]}  O-O {[%clk 0:02:12]} 13. Nd2 {[%clk 0:02:29]}  b5 {[%clk 0:02:02]} 14. e4 {[%clk 0:02:19]}  Qb6 {[%clk 0:01:48]} 15. f5 {[%clk 0:02:13]}  c4+ {[%clk 0:01:27]} 16. Kh1 {[%clk 0:02:10]}  Nxe5 {[%clk 0:01:27]} 17. f6 {[%clk 0:02:09]}  d4 {[%clk 0:01:18]} 18. Qh5 {[%clk 0:01:52]}  Ng6 {[%clk 0:01:15]} 19. Nf3 {[%clk 0:01:46]}  dxc3 {[%clk 0:01:07]} 20. fxg7 {[%clk 0:01:38]}  Kxg7 {[%clk 0:01:05]} 21. bxc3 {[%clk 0:01:34]}  Rad8 {[%clk 0:01:04]} 22. e5 {[%clk 0:01:25]}  Qe3 {[%clk 0:01:01]} 23. Ng5 {[%clk 0:01:05]}  h6 {[%clk 0:01:00]} 24. Rxf7+ {[%clk 0:01:05]}  Rxf7 {[%clk 0:00:57]} 25. Nxe6+ {[%clk 0:01:05]}  Kh7 {[%clk 0:00:55]} 26. Nxd8 {[%clk 0:01:03]}  Qxc3 {[%clk 0:00:54]} 27. Rd1 {[%clk 0:00:56]}  Re7 {[%clk 0:00:39]} 28. e6 {[%clk 0:00:47]}  Qe5 {[%clk 0:00:32]} 29. Qf3 {[%clk 0:00:42]}  c3 {[%clk 0:00:27]} 30. Nc6 {[%clk 0:00:36]}  c2 {[%clk 0:00:27]} 31. Nxe5 {[%clk 0:00:34]}  cxd1=Q+ {[%clk 0:00:23]} 32. Qxd1 {[%clk 0:00:33]}  Nxe5 {[%clk 0:00:23]} 33. Qd6 {[%clk 0:00:27]}  Ng6 {[%clk 0:00:18]} 34. g4 {[%clk 0:00:26]}  Kg7 {[%clk 0:00:18]} 35. h4 {[%clk 0:00:23]}  Kf6 {[%clk 0:00:17]} 36. h5 {[%clk 0:00:16]}  Ne5 {[%clk 0:00:16]} 37. Qd2 {[%clk 0:00:14]}  Kg7 {[%clk 0:00:11]} 38. g5 {[%clk 0:00:11]}  Rxe6 {[%clk 0:00:09]} 39. Qd5 {[%clk 0:00:10]}  Re7 {[%clk 0:00:08]} 40. g6 {[%clk 0:00:09]}  Ng4 {[%clk 0:00:05]} 41. Qxb5 {[%clk 0:00:04]}  Nf6 {[%clk 0:00:05]} 42. Qa5 {[%clk 0:00:04]}  Rd7 {[%clk 0:00:06]} 43. a4 {[%clk 0:00:04]}  Re7 {[%clk 0:00:06]} 44. Qc5 {[%clk 0:00:04]}  Rd7 {[%clk 0:00:06]} 45. a5 {[%clk 0:00:04]}  Rb7 {[%clk 0:00:05]} 46. a6 {[%clk 0:00:04]}  Rd7 {[%clk 0:00:06]} 47. Qc6 {[%clk 0:00:04]}  Re7 {[%clk 0:00:06]} 48. Qb7 {[%clk 0:00:04]}  Rd7 {[%clk 0:00:07]} 49. Qc6 {[%clk 0:00:03]}  Re7 {[%clk 0:00:07]} 50. Kg2 {[%clk 0:00:03]}  Rd7 {[%clk 0:00:08]} 51. Kf3 {[%clk 0:00:03]}  Re7 {[%clk 0:00:08]} 52. Kf4 {[%clk 0:00:03]}  Nxh5+ {[%clk 0:00:08]} 53. Kf5 {[%clk 0:00:03]}  Nf6 {[%clk 0:00:09]} 54. Qxf6+ {[%clk 0:00:03]} 1-0


[Site "https://www.chess.com"]

[Event "Titled Tuesday Blitz March 08 Late 2022"]
[White "Bibasa, Bob"]
[Black "Shuvalova, Polina"]
[WhiteFideId "10000240"]
[BlackFideId "24171760"]
[WhiteElo "2056"]
[BlackElo "2355"]
[Result "0-1"]
[Round "05"]
[TimeControl "180+1"]
[Date "2022.03.09"]
[WhiteClock "0:00:15"]
[BlackClock "0:00:32"]

1. e4 {[%clk 0:03:00]}  c5 {[%clk 0:02:39]} 2. Nf3 {[%clk 0:03:00]}  d6 {[%clk 0:02:30]} 3. d4 {[%clk 0:03:00]}  cxd4 {[%clk 0:02:30]} 4. Nxd4 {[%clk 0:03:01]}  Nf6 {[%clk 0:02:31]} 5. f3 {[%clk 0:03:01]}  e5 {[%clk 0:02:28]} 6. Nb3 {[%clk 0:03:01]}  a5 {[%clk 0:02:15]} 7. c4 {[%clk 0:02:57]}  Nxe4 {[%clk 0:02:11]} 8. Be3 {[%clk 0:02:40]}  Nf6 {[%clk 0:02:06]} 9. Nc3 {[%clk 0:02:38]}  Nc6 {[%clk 0:02:03]} 10. Bd3 {[%clk 0:02:35]}  Be7 {[%clk 0:02:02]} 11. O-O {[%clk 0:02:35]}  O-O {[%clk 0:02:01]} 12. Nd2 {[%clk 0:02:30]}  Be6 {[%clk 0:01:59]} 13. Nde4 {[%clk 0:02:28]}  Nb4 {[%clk 0:01:47]} 14. a3 {[%clk 0:02:19]}  Nxd3 {[%clk 0:01:45]} 15. Qxd3 {[%clk 0:02:19]}  Rc8 {[%clk 0:01:44]} 16. b3 {[%clk 0:02:19]}  a4 {[%clk 0:01:07]} 17. Nxa4 {[%clk 0:02:11]}  d5 {[%clk 0:01:04]} 18. Nxf6+ {[%clk 0:02:11]}  Bxf6 {[%clk 0:01:04]} 19. cxd5 {[%clk 0:02:12]}  e4 {[%clk 0:00:58]} 20. Qxe4 {[%clk 0:02:00]}  Bxd5 {[%clk 0:00:56]} 21. Qb4 {[%clk 0:01:42]}  Bxa1 {[%clk 0:00:56]} 22. Rxa1 {[%clk 0:01:42]}  Re8 {[%clk 0:00:51]} 23. Bd4 {[%clk 0:01:33]}  Rc2 {[%clk 0:00:47]} 24. Nc3 {[%clk 0:01:24]}  Bxf3 {[%clk 0:00:44]} 25. Bf2 {[%clk 0:01:10]}  Qg5 {[%clk 0:00:39]} 26. g3 {[%clk 0:01:07]}  Bc6 {[%clk 0:00:38]} 27. Qd4 {[%clk 0:00:36]}  Rxc3 {[%clk 0:00:34]} 28. h4 {[%clk 0:00:17]}  Rxg3+ {[%clk 0:00:32]} 29. Kf1 {[%clk 0:00:15]}  Rg1+ {[%clk 0:00:31]} 30. Bxg1 {[%clk 0:00:15]}  Qg2# {[%clk 0:00:32]} 0-1


[Site "https://www.chess.com"]

[Event "Titled Tuesday Blitz March 08 Late 2022"]
[White "Burke, Paul"]
[Black "Avazkhonov, Alikhon"]
[WhiteFideId "2605767"]
[BlackFideId "14208504"]
[WhiteElo "1889"]
[BlackElo "1739"]
[Result "0-1"]
[Round "05"]
[TimeControl "180+1"]
[Date "2022.03.09"]
[WhiteClock "0:01:03"]
[BlackClock "0:00:08"]

1. e4 {[%clk 0:03:00]}  c6 {[%clk 0:02:41]} 2. d4 {[%clk 0:02:58]}  d5 {[%clk 0:02:41]} 3. Nc3 {[%clk 0:02:58]}  dxe4 {[%clk 0:02:40]} 4. f3 {[%clk 0:02:59]}  exf3 {[%clk 0:02:39]} 5. Nxf3 {[%clk 0:02:58]}  Bf5 {[%clk 0:02:38]} 6. Bc4 {[%clk 0:02:57]}  Nf6 {[%clk 0:02:37]} 7. O-O {[%clk 0:02:57]}  e6 {[%clk 0:02:37]} 8. Ne5 {[%clk 0:02:57]}  Bg6 {[%clk 0:02:36]} 9. Nxg6 {[%clk 0:02:54]}  hxg6 {[%clk 0:02:36]} 10. Be3 {[%clk 0:02:50]}  Bd6 {[%clk 0:02:19]} 11. g3 {[%clk 0:02:45]}  Nbd7 {[%clk 0:02:18]} 12. Qe2 {[%clk 0:02:44]}  Qc7 {[%clk 0:02:16]} 13. d5 {[%clk 0:02:23]}  Bxg3 {[%clk 0:01:17]} 14. hxg3 {[%clk 0:02:11]}  Qxg3+ {[%clk 0:01:18]} 15. Qg2 {[%clk 0:02:11]}  Qxe3+ {[%clk 0:01:18]} 16. Rf2 {[%clk 0:02:11]}  cxd5 {[%clk 0:00:52]} 17. Bb5 {[%clk 0:02:04]}  O-O-O {[%clk 0:00:49]} 18. Kf1 {[%clk 0:01:56]}  Ne5 {[%clk 0:00:44]} 19. Re1 {[%clk 0:01:52]}  Qd4 {[%clk 0:00:33]} 20. Rd1 {[%clk 0:01:43]}  Qc5 {[%clk 0:00:31]} 21. Be2 {[%clk 0:01:34]}  Rh4 {[%clk 0:00:20]} 22. Ke1 {[%clk 0:01:27]}  Qe3 {[%clk 0:00:13]} 23. Nb5 {[%clk 0:01:13]}  Nfg4 {[%clk 0:00:11]} 24. Rf1 {[%clk 0:01:03]}  Rh2 {[%clk 0:00:08]} 0-1


[Site "https://www.chess.com"]

[Event "Titled Tuesday Blitz March 08 Late 2022"]
[White "Chernomordik, Pavel"]
[Black "Pinheiro, Iung Alicio de O."]
[WhiteFideId "2804530"]
[BlackFideId "2104350"]
[WhiteElo "2249"]
[BlackElo "2612"]
[Result "0-1"]
[Round "05"]
[TimeControl "180+1"]
[Date "2022.03.09"]
[WhiteClock "0:00:01"]
[BlackClock "0:00:38"]

1. e4 {[%clk 0:03:00]}  c5 {[%clk 0:02:59]} 2. Nc3 {[%clk 0:03:00]}  a6 {[%clk 0:02:58]} 3. f4 {[%clk 0:02:59]}  b5 {[%clk 0:02:55]} 4. g3 {[%clk 0:02:56]}  Bb7 {[%clk 0:02:55]} 5. Bg2 {[%clk 0:02:56]}  e6 {[%clk 0:02:55]} 6. Qe2 {[%clk 0:02:55]}  Nc6 {[%clk 0:02:49]} 7. Nf3 {[%clk 0:02:54]}  d5 {[%clk 0:02:33]} 8. exd5 {[%clk 0:02:48]}  Nd4 {[%clk 0:02:34]} 9. Nxd4 {[%clk 0:02:01]}  cxd4 {[%clk 0:02:35]} 10. dxe6 {[%clk 0:01:36]}  Bxg2 {[%clk 0:02:18]} 11. Qxg2 {[%clk 0:01:32]}  dxc3 {[%clk 0:02:16]} 12. exf7+ {[%clk 0:01:26]}  Kxf7 {[%clk 0:02:15]} 13. dxc3 {[%clk 0:01:25]}  Bc5 {[%clk 0:02:10]} 14. Bd2 {[%clk 0:01:15]}  Qe8+ {[%clk 0:01:59]} 15. Kd1 {[%clk 0:01:14]}  Nf6 {[%clk 0:01:53]} 16. Re1 {[%clk 0:01:11]}  Qd7 {[%clk 0:01:52]} 17. Kc1 {[%clk 0:01:10]}  Rad8 {[%clk 0:01:51]} 18. Re2 {[%clk 0:00:56]}  Rhe8 {[%clk 0:01:48]} 19. b4 {[%clk 0:00:42]}  Bb6 {[%clk 0:01:31]} 20. Rxe8 {[%clk 0:00:37]}  Nxe8 {[%clk 0:01:20]} 21. Kb2 {[%clk 0:00:31]}  Qxd2 {[%clk 0:01:19]} 22. Qb7+ {[%clk 0:00:29]}  Bc7 {[%clk 0:01:18]} 23. Qxa6 {[%clk 0:00:28]}  Qd7 {[%clk 0:01:15]} 24. Re1 {[%clk 0:00:26]}  Nf6 {[%clk 0:01:15]} 25. Qb7 {[%clk 0:00:18]}  Rb8 {[%clk 0:01:07]} 26. Qf3 {[%clk 0:00:16]}  Qd5 {[%clk 0:01:05]} 27. Qf2 {[%clk 0:00:07]}  Bb6 {[%clk 0:00:54]} 28. Qf1 {[%clk 0:00:03]}  Ra8 {[%clk 0:00:51]} 29. Ra1 {[%clk 0:00:02]}  Ne4 {[%clk 0:00:48]} 30. Qd3 {[%clk 0:00:01]}  Qc6 {[%clk 0:00:38]} 0-1


[Site "https://www.chess.com"]

[Event "Titled Tuesday Blitz March 08 Late 2022"]
[White "Chigaev, Maksim"]
[Black "Korchmar, Vasiliy"]
[WhiteFideId "4108116"]
[BlackFideId "24131750"]
[WhiteElo "2502"]
[BlackElo "2370"]
[Result "0-1"]
[Round "05"]
[TimeControl "180+1"]
[Date "2022.03.08"]
[WhiteClock "0:00:02"]
[BlackClock "0:00:54"]

1. e4 {[%clk 0:03:00]}  c5 {[%clk 0:02:59]} 2. b3 {[%clk 0:02:55]}  e6 {[%clk 0:02:56]} 3. Bb2 {[%clk 0:02:55]}  a6 {[%clk 0:02:56]} 4. Nc3 {[%clk 0:02:53]}  Nc6 {[%clk 0:02:55]} 5. Nf3 {[%clk 0:02:51]}  d5 {[%clk 0:02:54]} 6. exd5 {[%clk 0:02:48]}  exd5 {[%clk 0:02:55]} 7. d4 {[%clk 0:02:49]}  Nf6 {[%clk 0:02:54]} 8. Be2 {[%clk 0:02:48]}  Bg4 {[%clk 0:02:43]} 9. dxc5 {[%clk 0:02:31]}  Bxc5 {[%clk 0:02:44]} 10. O-O {[%clk 0:02:31]}  O-O {[%clk 0:02:44]} 11. Ne1 {[%clk 0:02:11]}  Bf5 {[%clk 0:02:33]} 12. Nd3 {[%clk 0:02:03]}  Bd4 {[%clk 0:02:28]} 13. Bf3 {[%clk 0:01:53]}  Rc8 {[%clk 0:02:19]} 14. Re1 {[%clk 0:01:20]}  h6 {[%clk 0:02:15]} 15. h3 {[%clk 0:01:06]}  b5 {[%clk 0:02:09]} 16. a3 {[%clk 0:00:55]}  Qd7 {[%clk 0:02:05]} 17. Rb1 {[%clk 0:00:42]}  Rfe8 {[%clk 0:01:51]} 18. Rxe8+ {[%clk 0:00:29]}  Rxe8 {[%clk 0:01:51]} 19. Nb4 {[%clk 0:00:28]}  Nxb4 {[%clk 0:01:41]} 20. axb4 {[%clk 0:00:28]}  Qa7 {[%clk 0:01:35]} 21. Qd2 {[%clk 0:00:24]}  Rc8 {[%clk 0:00:59]} 22. Nxb5 {[%clk 0:00:19]}  Bxf2+ {[%clk 0:00:56]} 23. Qxf2 {[%clk 0:00:07]}  Qxf2+ {[%clk 0:00:57]} 24. Kxf2 {[%clk 0:00:07]}  Rxc2+ {[%clk 0:00:58]} 25. Kg1 {[%clk 0:00:03]}  axb5 {[%clk 0:00:59]} 26. Bxf6 {[%clk 0:00:03]}  gxf6 {[%clk 0:00:55]} 27. Bxd5 {[%clk 0:00:02]}  Rd2 {[%clk 0:00:54]} 0-1


[Site "https://www.chess.com"]